bitfinex/quotes_ETHUSD_20250129
["timestamp","ask_amount","ask_price","bid_price","bid_amount"]
[1738142429227,3.18442,3140.3,3140.1,0.07672214]
[1738142429540,3.18435,3140.4,3140.1,0.07672214]
[1738142429849,3.18447,3140.3,3140.1,0.07672214]
[1738142430350,3.18435,3140.4,3140.1,0.62672214]
[1738142430351,3.18451,3140.2,3140.1,0.62672214]
[1738142430659,3.18451,3140.2,3140.1,0.07672214]
[1738142430952,3.18451,3140.2,3139.7,0.55]
[1738142431159,3.18451,3140.2,3139.7,1.006209]
[1738142431460,3.18451,3140.2,3139.9,0.55]
[1738142431946,3.18451,3140.2,3140.0,0.07416579]
[1738142432147,3.18461,3140.1,3140.0,0.07416579]
[1738142432656,3.18461,3140.1,3140.0,0.10736112]
[1738142434454,3.93551,3140.1,3140.0,0.10736112]
[1738142434652,3.18481,3139.9,3139.4,8.91]
[1738142434867,3.18517,3139.6,3139.4,8.91]
[1738142435162,3.18539,3139.4,3139.0,0.7637]
[1738142435649,3.18539,3139.4,3139.1,0.55]
[1738142435849,3.18539,3139.4,3139.0,0.7637]
[1738142436234,3.18539,3139.4,3139.1,0.55]
[1738142436526,3.95472,3139.5,3139.1,0.55]
[1738142436740,3.18535,3139.4,3138.9,0.55]
[1738142436957,3.18535,3139.4,3138.9,1.058715]
[1738142438057,0.7695,3139.5,3139.0,0.10315421]
[1738142438354,3.18532,3139.4,3138.8,0.58185419]
[1738142438535,3.18532,3139.4,3139.0,0.55]
[1738142438936,3.18532,3139.4,3139.1,0.10345759]
[1738142439118,3.7906,3139.8,3139.1,0.10345759]
[1738142439119,3.18552,3139.2,3139.1,0.10345759]
[1738142439322,3.18579,3139.0,3138.4,0.8155]
[1738142439665,3.18582,3138.9,3138.4,0.8155]
[1738142440161,3.18593,3138.8,3138.5,0.55]
[1738142440663,3.18605,3138.7,3138.5,0.55]
[1738142441657,3.18582,3138.9,3138.4,0.8155]
[1738142441844,3.18579,3139.0,3138.4,4.00178]
[1738142442046,3.18584,3138.9,3138.4,4.00178]
[1738142442259,3.18595,3138.8,3138.4,0.8155]
[1738142444153,3.18574,3139.0,3138.4,4.00183]
[1738142444558,3.18591,3138.9,3138.4,0.8155]
[1738142444938,3.18593,3138.8,3138.4,0.8155]
[1738142446580,3.18574,3139.0,3138.4,0.8155]
[1738142446879,3.18557,3139.2,3138.6,3.18612]
[1738142447055,3.18569,3139.1,3138.6,3.18612]
[1738142447677,3.18557,3139.2,3138.4,0.8155]
[1738142447850,3.18574,3139.0,3138.4,4.00175]
[1738142448067,3.18574,3139.0,3138.5,3.18623]
[1738142448978,3.18574,3139.0,3138.4,0.8155]
[1738142449272,3.18574,3139.0,3138.4,4.00175]
[1738142449478,3.18587,3138.9,3138.4,4.00175]
[1738142449874,0.7906,3139.3,3138.4,4.00175]
[1738142449875,3.264722,3139.3,3138.4,0.8155]
[1738142450178,3.18598,3138.8,3138.4,0.8155]
[1738142452378,3.18574,3139.0,3138.4,0.84736146]
[1738142452890,9.37116,3139.2,3138.5,3.18613]
[1738142453084,3.18567,3139.1,3138.6,3.18611]
[1738142453297,6.37137,3139.1,3138.6,3.18611]
[1738142453508,3.18567,3139.1,3138.7,0.1040972]
[1738142454120,6.37137,3139.1,3138.7,0.1040972]
[1738142454421,3.18567,3139.1,3138.7,0.1040972]
[1738142454715,6.37138,3139.1,3138.7,0.1040972]
[1738142455213,3.18567,3139.1,3138.7,0.1040972]
[1738142456217,3.0,3139.2,3138.7,0.43629972]
[1738142456421,3.0,3139.2,3138.8,3.93977]
[1738142456915,3.0,3139.2,3138.9,0.10405368]
[1738142457720,3.18549,3139.3,3138.9,0.10405368]
[1738142457886,3.18522,3139.5,3139.0,3.1857]
[1738142458083,3.83772064,3139.7,3139.2,0.8038]
[1738142458487,7.02280064,3139.7,3139.3,0.10367308]
[1738142458687,3.83772064,3139.7,3139.3,0.10367308]
[1738142458917,3.18511,3139.6,3139.2,0.8038]
[1738142459124,3.18511,3139.6,3139.4,0.10366571]
[1738142459287,3.18511,3139.6,3139.3,0.10366732]
[1738142459487,3.18511,3139.6,3139.5,0.1036641]
[1738142459720,3.18511,3139.6,3139.4,0.10366571]
[1738142459916,3.18511,3139.6,3139.5,0.1036641]
[1738142460297,3.18511,3139.6,3139.2,0.8038]
[1738142460499,3.18511,3139.6,3139.5,0.1036641]
[1738142460693,3.18562,3139.1,3138.8,8.91]
[1738142461023,0.8103,3139.5,3138.8,8.91]
[1738142461024,3.18543,3139.3,3138.8,8.91]
[1738142461200,3.18561,3139.2,3138.8,8.91]
[1738142461594,3.18577,3139.0,3138.7,0.7812]
[1738142462120,3.18577,3139.0,3138.5,7.18235]
[1738142462421,3.18577,3139.0,3138.5,9.110226]
[1738142462722,3.18563,3139.1,3138.5,9.110226]
[1738142462906,3.18563,3139.1,3138.5,5.922226]
[1738142463122,3.0,3139.2,3138.6,0.03185657]
[1738142463417,3.18556,3139.2,3138.7,3.18601]
[1738142464221,3.18532,3139.4,3139.0,0.8195]
[1738142464398,3.18514,3139.6,3139.1,3.18556]
[1738142464596,3.18514,3139.6,3139.1,3.2174138]
[1738142464910,3.18514,3139.6,3139.1,6.4029738]
[1738142465111,3.18514,3139.6,3139.1,3.18556]
[1738142466186,0.65268064,3139.7,3139.1,6.37112]
[1738142466391,3.18498,3139.8,3139.3,3.96281]
[1738142466927,3.18498,3139.8,3139.3,0.7774]
[1738142467231,3.18503,3139.7,3139.3,0.7774]
[1738142467426,3.8107,3140.2,3139.3,0.7774]
[1738142467630,3.18487,3139.9,3139.3,4.43448719]
[1738142467936,3.18487,3139.9,3139.4,0.03184965]
[1738142468138,3.18477,3140.0,3139.4,3.3205679]
[1738142468732,3.18477,3140.0,3139.4,3.28871825]
[1738142469138,3.18477,3140.0,3139.5,3.18517]
[1738142469443,3.18477,3140.0,3139.6,0.10304096]
[1738142470221,6.36955,3140.0,3139.6,0.10304096]
[1738142470422,3.18477,3140.0,3139.6,0.10304096]
[1738142470824,6.36955,3140.0,3139.6,0.10304096]
[1738142471048,3.18481,3139.9,3139.6,0.10304096]
[1738142471815,3.18481,3139.9,3139.4,3.18531]
[1738142472147,3.18481,3139.9,3139.7,0.1030336]
[1738142472450,3.18481,3139.9,3139.8,0.10299747]
[1738142472816,3.18468,3140.1,3139.8,0.7899]
[1738142473048,3.18453,3140.2,3139.8,0.89289747]
[1738142473247,3.18439,3140.4,3139.8,4.48558522]
[1738142473427,3.18446,3140.3,3139.8,4.48558522]
[1738142474029,6.36878,3140.4,3139.8,4.48552522]
[1738142474458,3.18451,3140.2,3139.8,1.30068522]
[1738142475051,3.18461,3140.1,3139.8,1.30068522]
[1738142475252,3.18451,3140.2,3139.8,0.89289747]
[1738142478064,6.36908,3140.2,3139.8,0.89289747]
[1738142478227,3.18451,3140.2,3139.8,0.89289747]
[1738142479955,3.18471,3140.0,3139.8,0.10299747]
[1738142480264,3.18527,3139.5,3139.0,0.7838]
[1738142480438,3.18559,3139.2,3139.0,0.7838]
[1738142480631,3.18559,3139.2,3138.8,9.7224]
[1738142480831,6.37119,3139.2,3138.8,9.7224]
[1738142481046,3.18559,3139.2,3138.8,9.7224]
[1738142481251,3.18559,3139.2,3138.8,11.013239]
[1738142482053,3.18568,3139.1,3138.8,11.013239]
[1738142482545,3.18559,3139.2,3138.8,11.013239]
[1738142483163,3.18559,3139.2,3138.9,0.10318463]
[1738142483536,3.18563,3139.1,3138.9,0.10318463]
[1738142483735,3.18559,3139.2,3138.9,0.10318463]
[1738142483939,3.18534,3139.4,3138.9,0.10318463]
[1738142484138,3.0,3139.8,3138.9,0.10318463]
[1738142484139,3.95878,3139.8,3139.2,3.18551]
[1738142484342,3.18504,3139.7,3139.3,0.87498394]
[1738142485155,6.18497,3139.8,3139.3,0.87498394]
[1738142485977,3.18507,3139.7,3139.3,0.87498394]
[1738142486141,3.93608,3139.6,3139.3,0.10318394]
[1738142486341,3.81934082,3139.4,3139.3,0.10318394]
[1738142486536,3.18558,3139.2,3139.0,8.91]
[1738142486973,3.81934082,3139.4,3139.0,8.91]
[1738142486974,0.63402082,3139.4,3139.1,0.10303178]
[1738142487172,3.18552,3139.2,3139.1,0.10303178]
[1738142490187,3.18542,3139.3,3139.1,0.10303178]
[1738142491827,3.18542,3139.3,3138.8,3.18592]
[1738142492005,3.18542,3139.3,3139.2,0.10345023]
[1738142492193,3.18542,3139.3,3138.8,3.18592]
[1738142492706,3.18542,3139.3,3138.9,0.10345506]
[1738142493927,3.81934082,3139.4,3138.9,3.28927506]
[1738142494136,0.63402082,3139.4,3139.0,3.18563]
[1738142494312,0.63402082,3139.4,3139.1,3.51771407]
[1738142494632,3.18507,3139.7,3139.2,3.18547]
[1738142494831,3.18482,3139.9,3139.3,0.7765]
[1738142495008,3.18482,3139.9,3139.4,3.18531]
[1738142495211,3.18482,3139.9,3139.5,0.10344541]
[1738142495928,6.36973,3139.9,3139.5,0.10344541]
[1738142496129,3.18482,3139.9,3139.5,0.10344541]
[1738142497614,3.18481,3139.9,3139.5,3.28860541]
[1738142498036,6.36935,3140.1,3139.5,3.698301]
[1738142498536,3.18465,3140.1,3139.5,3.698301]
[1738142498933,6.36933,3140.1,3139.5,3.698301]
[1738142499137,3.18465,3140.1,3139.5,3.698301]
[1738142499840,3.18446,3140.3,3139.8,0.8]
[1738142500142,3.18431,3140.4,3139.9,3.583298]
[1738142500438,3.80857836,3140.5,3139.9,3.583298]
[1738142500439,0.62431836,3140.5,3140.0,3.18468]
[1738142500629,3.80856836,3140.5,3140.0,3.18468]
[1738142500939,3.80856836,3140.5,3140.1,0.10343575]
[1738142501343,3.18425,3140.5,3140.1,0.10343575]
[1738142502126,6.36853,3140.5,3140.1,0.10343575]
[1738142502328,3.18431,3140.4,3140.1,0.10343575]
[1738142502639,3.18501,3139.7,3139.2,0.7653]
[1738142503039,3.18501,3139.7,3139.2,3.95076]
[1738142503240,6.36971,3139.9,3139.3,3.18542]
[1738142503641,3.18493,3139.8,3139.3,3.18542]
[1738142503946,3.18493,3139.8,3139.2,3.95076]
[1738142503947,3.1811319,3139.8,3139.2,3.95076]
[1738142504606,3.18524,3139.5,3139.2,0.7653]
[1738142505021,3.18524,3139.5,3139.0,3.95556]
[1738142505222,3.18524,3139.5,3139.0,0.7699]
[1738142505822,3.18548,3139.3,3138.8,0.7993]
[1738142506032,3.18563,3139.1,3138.8,0.7993]
[1738142506347,3.18563,3139.1,3138.7,8.91]
[1738142506348,3.1858,3139.0,3138.6,0.7662]
[1738142506841,3.18563,3139.1,3138.6,3.95232]
[1738142507045,3.18563,3139.1,3138.6,4.66935182]
[1738142507430,3.18563,3139.1,3138.6,0.7662]
[1738142507635,3.18583,3138.9,3138.4,0.8329]
[1738142508460,3.18583,3138.9,3138.4,0.86475971]
[1738142509667,3.18583,3138.9,3138.4,4.05106971]
[1738142509871,3.18583,3138.9,3138.4,0.8329]
[1738142510059,6.37174,3138.9,3138.4,0.8329]
[1738142510263,3.18583,3138.9,3138.4,0.8329]
[1738142511239,6.37175,3138.9,3138.4,0.8329]
[1738142511434,3.18642,3138.4,3138.0,8.91]
[1738142511638,0.8268,3138.5,3137.6,3.98478]
[1738142511848,3.18666,3138.1,3137.6,0.7977]
[1738142512060,3.18683,3138.0,3137.6,0.7977]
[1738142512258,3.18652,3138.3,3137.6,0.7977]
[1738142512970,6.37305,3138.3,3137.6,0.7977]
[1738142513173,3.18691,3137.9,3137.7,0.09732303]
[1738142513375,4.01992,3138.0,3137.7,0.09732303]
[1738142513612,0.8331,3138.0,3137.3,0.7751]
[1738142513899,3.18705,3137.7,3137.3,0.7751]
[1738142514101,3.18705,3137.7,3137.4,0.09777047]
[1738142514459,3.18725,3137.5,3137.4,0.09777047]
[1738142514779,3.18725,3137.5,3137.0,0.7936]
[1738142514978,7.01988,3138.0,3137.4,0.09777047]
[1738142515147,3.18731,3137.5,3137.0,0.7936]
[1738142515840,7.01988,3138.0,3137.3,3.18744]
[1738142515841,3.0,3137.8,3137.3,3.18744]
[1738142516041,0.8331,3138.0,3137.4,3.18731]
[1738142516244,0.8331,3138.0,3137.4,6.37459]
[1738142516488,4.01991,3138.0,3137.5,0.637459]
[1738142516646,4.01991,3138.0,3137.4,3.18728]
[1738142517070,3.18691,3137.9,3137.2,6.37499]
[1738142517246,3.18696,3137.8,3137.2,3.18749]
[1738142517442,3.18691,3137.9,3137.2,3.18749]
[1738142517677,3.18707,3137.7,3137.2,3.18749]
[1738142517867,3.18707,3137.7,3137.3,0.318749]
[1738142518041,0.8331,3138.0,3137.1,3.189]
[1738142518042,3.18726,3137.5,3137.1,3.189]
[1738142518243,3.18726,3137.5,3137.0,9.7036]
[1738142518578,3.1874,3137.4,3137.0,9.7036]
[1738142518877,3.1871,3137.7,3137.0,9.7036]
[1738142519081,3.18728,3137.5,3137.0,9.7036]
[1738142519278,3.18728,3137.5,3137.1,1.289138]
[1738142519676,3.1871,3137.7,3137.2,3.18749]
[1738142519839,0.8331,3138.0,3137.1,1.289138]
[1738142520040,6.37444,3137.6,3137.1,1.289138]
[1738142520382,3.18722,3137.6,3137.1,1.289138]
[1738142520681,3.18722,3137.6,3137.2,1.4180438]
[1738142521279,3.18698,3137.8,3137.2,1.4180438]
[1738142521491,6.18706,3137.7,3137.2,1.4180438]
[1738142522783,3.0,3137.8,3137.2,4.6055438]
[1738142523080,3.18706,3137.7,3137.2,4.6055438]
[1738142523279,3.18706,3137.7,3137.3,0.46055438]
[1738142525584,3.18706,3137.7,3137.1,3.18763]
[1738142526490,6.37418,3137.7,3137.1,3.18763]
[1738142526883,3.18706,3137.7,3137.1,3.18763]
[1738142527389,6.37418,3137.7,3137.1,3.18763]
[1738142527568,3.18715,3137.6,3137.1,3.18763]
[1738142527889,3.18715,3137.6,3137.2,0.398123]
[1738142528056,0.8322,3137.6,3137.2,0.09868782]
[1738142528451,3.18781,3137.0,3136.5,0.8247]
[1738142528856,6.37566,3137.0,3136.5,0.8247]
[1738142529059,3.18803,3136.8,3136.4,8.91]
[1738142529794,3.18803,3136.8,3136.3,0.8247]
[1738142530009,3.0,3137.1,3136.5,3.18817]
[1738142530170,3.0,3137.1,3136.7,3.18806]
[1738142530561,3.18765,3137.2,3136.7,3.18806]
[1738142531572,3.9739,3137.6,3136.8,0.801]
[1738142531771,3.1873,3137.5,3136.9,3.18782]
[1738142531969,3.9739,3137.6,3136.9,3.18782]
[1738142532161,3.18735,3137.4,3136.9,3.18782]
[1738142532361,3.9739,3137.6,3136.9,3.905508]
[1738142532564,3.1871,3137.7,3137.1,3.18757]
[1738142532893,3.18711,3137.7,3137.1,3.18757]
[1738142533499,3.18716,3137.6,3137.1,3.18757]
[1738142533999,6.37439,3137.6,3136.9,3.905448]
[1738142534167,6.37439,3137.6,3137.0,4.5493748]
[1738142534365,3.18716,3137.6,3137.0,4.5493748]
[1738142535895,3.18716,3137.6,3137.0,1.3616448]
[1738142536098,3.18716,3137.6,3137.1,3.18765]
[1738142540701,0.7749,3137.8,3137.0,4.5493748]
[1738142540908,3.18721,3137.6,3137.0,4.5493748]
[1738142541210,3.18721,3137.6,3137.1,0.84548228]
[1738142541605,3.18704,3137.7,3137.1,0.84548228]
[1738142541802,3.18726,3137.5,3137.1,0.84548228]
[1738142542728,3.18704,3137.7,3137.1,0.84548228]
[1738142543004,3.18719,3137.6,3137.1,4.03311228]
[1738142543211,3.18719,3137.6,3137.2,0.09905592]
[1738142543910,3.18726,3137.5,3137.2,0.09905592]
[1738142544274,3.18726,3137.5,3137.0,1.3616448]
[1738142544473,3.18726,3137.5,3137.3,0.09905431]
[1738142544669,3.18726,3137.5,3137.0,4.5493448]
[1738142544900,3.18726,3137.5,3137.4,0.09905269]
[1738142545109,3.18726,3137.5,3137.1,3.96135048]
[1738142545295,3.18726,3137.5,3137.4,0.09905269]
[1738142545605,3.18726,3137.5,3137.1,3.96135048]
[1738142545817,3.18726,3137.5,3137.4,0.09905269]
[1738142546024,3.18726,3137.5,3137.1,3.96135048]
[1738142546185,3.18726,3137.5,3137.4,0.09905269]
[1738142546386,3.18726,3137.5,3137.1,3.18764]
[1738142546604,3.18726,3137.5,3137.4,0.09905269]
[1738142546807,3.18726,3137.5,3137.1,3.96134448]
[1738142547402,3.18726,3137.5,3137.2,0.09907892]
[1738142547920,3.18726,3137.5,3137.0,4.5493648]
[1738142548127,3.18726,3137.5,3137.3,0.09907731]
[1738142548322,0.637435,3137.5,3136.8,9.711]
[1738142548622,3.982,3137.3,3136.8,9.711]
[1738142548811,3.982,3137.3,3136.8,8.91]
[1738142549126,3.18755,3137.2,3136.8,12.09795]
[1738142549422,3.18786,3136.9,3136.2,3.1885]
[1738142549590,3.18786,3136.9,3136.2,3.9564]
[1738142549791,3.18797,3136.8,3136.3,3.58408003]
[1738142552924,3.18797,3136.8,3136.3,3.58404003]
[1738142553128,3.18797,3136.8,3136.1,3e-07]
[1738142553129,3.18857,3136.2,3136.1,3e-07]
[1738142554321,3.94957,3136.5,3136.1,3e-07]
[1738142554528,3.94957,3136.5,3135.3,5.663552]
[1738142554529,3.19121,3133.6,3133.5,0.1618303]
[1738142554696,3.22298011,3133.8,3133.5,0.1618303]
[1738142554897,3.19121,3133.6,3133.5,0.1618303]
[1738142555416,3.19102,3133.8,3133.5,0.1618303]
[1738142555619,0.319102,3133.7,3133.5,0.1618303]
[1738142555815,0.03188011,3133.6,3133.5,0.1618303]
[1738142556028,3.19084,3134.0,3133.5,0.1618303]
[1738142556228,3.9518,3134.3,3133.5,0.1618303]
[1738142556407,3.9518,3134.3,3133.6,3.19119]
[1738142556608,3.19057,3134.3,3133.5,3.38497978]
[1738142556808,3.19057,3134.3,3133.6,0.33849798]
[1738142557008,3.19121,3133.7,3133.5,0.1618303]
[1738142557209,3.19121,3133.6,3133.5,0.1618303]
[1738142557423,3.22309011,3133.6,3133.5,0.1618303]
[1738142558026,3.19121,3133.6,3133.5,0.1618303]
[1738142558336,3.19121,3133.6,3133.5,0.22922005]
[1738142558531,3.19102,3133.8,3133.5,0.22922005]
[1738142558707,3.19113,3133.7,3133.5,0.22922005]
[1738142559302,3.19103,3133.8,3133.5,0.22922005]
[1738142559729,0.03188011,3133.9,3133.5,0.22922005]
[1738142560036,3.0,3134.2,3133.6,0.7516]
[1738142560037,3.19061,3134.2,3133.6,0.7516]
[1738142560403,3.19042,3134.4,3133.7,0.06738652]
[1738142560710,2.474122,3134.6,3133.7,0.06738652]
[1738142560711,3.19022,3134.6,3133.7,0.06738652]
[1738142560911,3.19046,3134.4,3133.8,3.19091]
[1738142561112,0.03188011,3134.5,3133.8,0.0673849]
[1738142561324,3.19078,3134.1,3133.6,9.6616]
[1738142561502,3.19058,3134.3,3133.9,0.06738329]
[1738142561821,3.19031,3134.5,3133.6,9.6616]
[1738142562034,3.19031,3134.5,3134.0,0.06738167]
[1738142564146,6.46858476,3134.5,3134.0,0.06738167]
[1738142564438,6.46858476,3134.5,3133.8,3.19092]
[1738142564638,6.46858476,3134.5,3134.1,0.06738006]
[1738142564844,3.19057,3134.3,3133.7,3.1911]
[1738142565037,3.19057,3134.3,3134.2,0.06737845]
[1738142565235,3.19057,3134.3,3133.7,3.1911]
[1738142565731,3.19057,3134.3,3133.8,0.0673849]
[1738142565925,3.19057,3134.3,3133.7,3.1911]
[1738142566133,3.19057,3134.3,3133.9,0.06738329]
[1738142566508,6.46858476,3134.5,3133.9,3.19085]
[1738142566709,6.46858476,3134.5,3134.0,0.06738167]
[1738142567348,3.19031,3134.5,3134.0,3.25818167]
[1738142567740,3.1901,3134.7,3134.0,0.06738167]
[1738142567974,3.91811748,3134.7,3134.0,3.25812167]
[1738142568440,3.91811748,3134.7,3134.0,0.06738167]
[1738142568628,3.91811748,3134.7,3134.1,3.19066]
[1738142568829,3.27827476,3134.8,3134.3,3.19049]
[1738142569007,6.46834476,3134.8,3134.3,0.7578]
[1738142569223,6.46834476,3134.8,3134.4,0.06737522]
[1738142569707,3.27827476,3134.8,3134.4,0.06737522]
[1738142569912,3.22198011,3134.7,3134.1,3.19061]
[1738142570126,3.22198011,3134.7,3134.5,0.06713723]
[1738142570327,3.18992,3134.9,3134.3,3.19048]
[1738142570527,3.18992,3134.9,3134.6,0.06713562]
[1738142570732,3.92406991,3134.9,3134.3,3.19048]
[1738142571044,3.19001,3134.8,3134.1,3.19067]
[1738142571266,3.92406991,3134.9,3134.1,3.19067]
[1738142571267,3.8921898,3134.9,3134.1,3.19067]
[1738142571470,3.8921898,3134.9,3134.3,3.19044]
[1738142571967,3.8921898,3134.9,3134.4,0.06713885]
[1738142572463,0.7022698,3134.9,3134.4,3.25745885]
[1738142572614,3.18985,3135.0,3134.4,3.25745885]
[1738142573046,3.22177011,3134.9,3134.4,0.06713885]
[1738142573359,3.22177011,3134.9,3134.1,3.19065]
[1738142573360,3.22177011,3134.9,3134.3,3.1905]
[1738142573563,3.22177011,3134.9,3134.5,0.06713723]
[1738142573716,3.22177011,3134.9,3134.3,3.1905]
[1738142573913,3.19001,3134.8,3134.6,0.06713562]
[1738142574117,3.19001,3134.8,3134.3,3.1905]
[1738142574359,3.18989,3134.9,3134.7,0.06713401]
[1738142574360,6.37986,3134.9,3134.7,0.06713401]
[1738142574556,6.37986,3134.9,3134.3,3.1905]
[1738142574557,3.8921848,3134.9,3134.3,3.1905]
[1738142574745,3.8921848,3134.9,3134.8,0.06713239]
[1738142574948,3.19,3134.8,3134.3,3.1905]
[1738142575313,7.0821548,3134.9,3134.4,0.06894671]
[1738142575621,3.18999,3134.8,3134.4,0.06894671]
[1738142576047,3.8921848,3134.9,3134.4,0.06894671]
[1738142576249,3.92406491,3134.9,3134.4,0.06894671]
[1738142576571,6.41176011,3134.9,3134.4,0.06894671]
[1738142576866,3.19,3134.8,3134.4,0.06894671]
[1738142577457,0.03188011,3134.7,3134.4,0.06894671]
[1738142578125,0.32508654,3134.7,3134.4,0.06894671]
[1738142578324,0.29320643,3134.7,3134.4,0.06894671]
[1738142579347,0.29320643,3134.6,3134.4,0.06894671]
[1738142579928,3.1903,3134.5,3133.9,8.91]
[1738142580134,3.1903,3134.5,3133.9,12.10082]
[1738142580353,3.1906,3134.3,3133.7,3.19105]
[1738142580652,3.1906,3134.3,3133.8,3.19095]
[1738142580855,3.48362643,3134.4,3133.9,3.1909]
[1738142581024,3.83198907,3134.4,3133.9,3.1909]
[1738142581556,3.19071,3134.1,3133.6,0.8143]
[1738142581739,0.03188011,3134.0,3133.6,0.8143]
[1738142581945,3.22274011,3134.0,3133.5,3.3530803]
[1738142582142,0.03188011,3134.0,3133.5,3.3530803]
[1738142582725,0.29320643,3133.9,3133.6,3.19118]
[1738142583052,0.29320643,3133.9,3133.6,3.19115]
[1738142583258,0.29320643,3133.9,3133.7,3.1911]
[1738142583642,0.29320643,3133.8,3133.7,3.1911]
[1738142584423,0.29320643,3133.8,3133.6,3.19115]
[1738142584822,0.29320643,3133.8,3133.6,3.19114]
[1738142585256,0.29320643,3133.7,3133.6,3.19114]
[1738142587971,0.29320643,3133.7,3133.6,3.25817455]
[1738142591884,0.29320643,3133.7,3133.6,4.08357455]
[1738142592463,0.29320643,3133.7,3133.6,3.25817455]
[1738142592663,0.29320643,3133.7,3133.6,0.06703455]
[1738142595371,6.19072,3134.1,3133.6,0.06703455]
[1738142595575,0.938124,3134.1,3133.6,0.06703455]
[1738142595771,0.938124,3134.1,3133.7,0.09256747]
[1738142595972,0.938124,3134.1,3133.7,0.15977911]
[1738142596486,0.938124,3134.1,3133.8,0.09256452]
[1738142596687,0.938124,3134.1,3133.8,0.15977455]
[1738142597065,4.16076411,3134.1,3133.8,0.15977455]
[1738142597389,3.90688641,3134.0,3133.8,0.09256452]
[1738142597687,4.69328641,3134.0,3133.8,0.09256452]
[1738142597851,4.69328641,3134.0,3133.9,0.06721418]
[1738142598056,4.69328641,3134.0,3133.8,0.09256452]
[1738142598250,4.69328641,3134.0,3133.9,0.06721418]
[1738142598457,4.69328641,3134.0,3133.8,0.09256452]
[1738142598755,0.7864,3134.0,3133.8,0.09256452]
[1738142598955,0.7864,3134.0,3133.9,0.06721994]
[1738142599788,3.53194679,3134.0,3133.9,0.06721994]
[1738142600288,3.53194679,3134.0,3133.8,0.09256452]
[1738142600490,3.53194679,3134.0,3133.9,0.067243]
[1738142600857,3.53194679,3134.0,3133.9,0.841943]
[1738142602714,3.53194679,3134.0,3133.9,1.25767941]
[1738142602917,3.53194679,3134.0,3133.9,4.44858941]
[1738142604001,3.53194679,3134.0,3133.9,1.25767941]
[1738142605514,3.53194679,3134.0,3133.9,4.44858941]
[1738142606528,3.53194679,3134.0,3133.9,4.48049489]
[1738142607128,3.53194679,3134.0,3133.9,4.44858941]
[1738142609195,3.53194679,3134.0,3133.9,4.48049471]
[1738142611426,3.53194679,3134.0,3133.9,7.48049471]
[1738142611624,3.53194679,3134.0,3133.9,7.44858941]
[1738142613448,3.53194679,3134.0,3133.9,8.077611]
[1738142615441,3.30901085,3134.0,3133.9,8.077611]
[1738142615940,2.93003318,3134.0,3133.9,17.537611]
[1738142616139,1.19916181,3134.0,3133.9,17.537611]
[1738142616608,1.19916181,3134.0,3133.9,16.987611]
[1738142617468,1.19916181,3134.0,3133.9,16.98381289]
[1738142617959,1.19916181,3134.0,3133.9,17.53381289]
[1738142618146,3.52898635,3135.3,3134.6,3.95363]
[1738142618348,3.52898635,3135.3,3134.7,3.22389526]
[1738142618537,3.52898635,3135.3,3134.7,3.28993835]
[1738142620369,3.52898635,3135.3,3134.8,3.18997]
[1738142620574,3.52898635,3135.3,3134.8,0.06604148]
[1738142621138,3.52898635,3135.3,3134.9,0.03189526]
[1738142621339,3.52898635,3135.3,3134.9,0.09793512]
[1738142621550,3.52898635,3135.3,3134.9,0.06603986]
[1738142621771,3.52898635,3135.3,3135.0,0.09252909]
[1738142621992,3.52898635,3135.3,3135.0,0.15856734]
[1738142622297,2.01656363,3135.2,3135.0,0.15856734]
[1738142622484,2.01656363,3135.2,3135.1,0.09252614]
[1738142622851,2.01656363,3135.2,3135.1,0.15856277]
[1738142632216,2.01656363,3135.5,3135.1,0.15856277]
[1738142635216,2.01656363,3135.4,3135.1,0.15856277]
[1738142638687,2.01656363,3135.3,3135.1,0.15856277]
[1738142642420,2.01656363,3135.5,3135.1,0.15856277]
[1738142643118,3.96938,3135.2,3135.1,0.15856277]
[1738142643325,4.00126011,3135.2,3135.1,0.15856277]
[1738142644822,3.96938,3135.2,3135.1,0.15856277]
[1738142645927,5.98594363,3135.2,3135.1,0.15856277]
[1738142646122,5.98594363,3135.2,3135.1,0.15824591]
[1738142648529,2.79636363,3135.2,3135.1,0.15824591]
[1738142650132,5.98594363,3135.2,3135.1,0.15824591]
[1738142650327,6.93855611,3135.2,3135.1,0.15824591]
[1738142650527,6.906676,3135.2,3135.1,0.15824591]
[1738142650728,6.906676,3135.2,3135.1,0.09252614]
[1738142650928,9.906676,3135.2,3135.1,0.09252614]
[1738142653717,9.906676,3135.2,3135.1,0.07423766]
[1738142655941,5.98594363,3135.2,3135.1,0.07423766]
[1738142656109,5.20614363,3135.2,3135.1,0.07423766]
[1738142656309,5.20614363,3135.2,3135.1,0.13770371]
[1738142656641,5.23802374,3135.2,3135.1,0.13770371]
[1738142656808,5.23802374,3135.2,3135.1,0.07423766]
[1738142657620,5.20614363,3135.2,3135.1,0.07423766]
[1738142657820,5.20614363,3135.2,3135.1,0.13770371]
[1738142658346,5.23802374,3135.2,3135.1,0.13770371]
[1738142660519,5.20614363,3135.2,3135.1,0.13770371]
[1738142663444,2.01656363,3135.2,3135.1,0.13770371]
[1738142666659,6.00474363,3135.2,3135.1,0.13770371]
[1738142668025,5.20614363,3135.2,3135.1,0.13770371]
[1738142668844,2.01656363,3135.2,3135.1,0.13770371]
[1738142669044,2.01656363,3135.2,3135.1,0.95030371]
[1738142669254,2.01656363,3135.2,3135.1,1.36430708]
[1738142669773,2.01656363,3135.2,3135.1,16.65499708]
[1738142670131,2.01656363,3135.2,3135.1,13.46399708]
[1738142670539,2.01656363,3135.2,3135.1,10.27430708]
[1738142675555,2.01656363,3135.2,3135.1,1.36430708]
[1738142678940,2.01656363,3135.2,3135.1,13.46399708]
[1738142680753,2.01656363,3135.2,3135.1,10.27430708]
[1738142681201,2.01656363,3135.2,3135.1,9.86030371]
[1738142681689,2.01656363,3135.2,3135.1,9.04770371]
[1738142684357,5.20614363,3135.2,3135.1,0.13770371]
[1738142694076,5.23802374,3135.2,3135.1,0.13770371]
[1738142695980,6.00292374,3135.2,3135.1,0.13770371]
[1738142696187,7.16958331,3135.2,3135.1,0.07423766]